[Event "Polish University-ch Teams 2024"]
[Site "Lublin"]
[Date "2024.02.25"]
[Round "9.8"]
[White "Szustakowski, Antoni"]
[Black "Klepek, Witold"]
[Result "0-1"]
[ECO "A30"]
[WhiteElo "2354"]
[BlackElo "2262"]
[Annotator "TA"]
[PlyCount "107"]
[EventDate "2024.02.22"]
[EventType "team-tourn"]
[EventCountry "POL"]
[SourceTitle "playchess.com"]
[Source "ChessBase"]
[SourceQuality "1"]
[TimeControl "900+5"]

{[%evp 18,107,52,51,91,89,83,89,86,77,79,74,82,82,84,77,93,56,102,-175,-152,-175,-187,-197,-174,-266,-244,-318,-314,-399,-287,-287,-282,-331,-318,-361,-345,-338,-305,-314,-289,-318,-318,-322,-325,-312,-249,-264,-254,-260,-198,-318,-311,-306,-295,-396,-411,-412,-412,-405,-406,-408,-120,-105,-120,-99,-110,-176,-163,-183,-189,-253,-256,-253,-252,-232,-262,-289,-8,-8,-8,-8,-8,-192,-97,-969,-8,-1547,-1476,-29987,-29988,-29988]} 1. Nf3 {[%emt 0:00:03]} Nf6 {[%emt 0:00:01]} 2. g3 {[%emt 0:00:01]} c5 {[%emt 0:00:10]} 3. c4 {[%emt 0:00:05]} b6 {[%emt 0:00:10]} 4. Bg2 {[%emt 0:00:02]} Bb7 {[%emt 0:00:01]} 5. O-O {[%emt 0:00:03]} e6 {[%emt 0:00:05]} 6. Nc3 {[%emt 0:00:03]} Be7 {[%emt 0:00:08]} 7. Re1 {[%emt 0:00:03]} O-O {[%emt 0:00:26]} 8. e4 {[%emt 0:00:02]} d6 {[%emt 0:00:01][%cal Bd7d6,Bd6e5][%mdl 32]} 9. d4 {[%emt 0:00:01]} cxd4 {[%emt 0:00:04]} 10. Nxd4 {[%emt 0:00:02]} Nbd7 {[%emt 0:00:11] [#]} 11. e5 $1 {[%emt 0:03:07]} dxe5 {[%emt 0:00:01]} 12. Bxb7 {[%emt 0:00:01]} exd4 {[%emt 0:00:11] White is better.} 13. Bxa8 {[%emt 0:00:01]} ({But not} 13. Qxd4 Nc5 14. Qxd8 Raxd8 $15) 13... dxc3 {[%emt 0:00:17]} 14. Bg2 {[%emt 0:00:30]} cxb2 {[%emt 0:00:21]} 15. Bxb2 {[%emt 0:00:02]} Qc7 {[%emt 0:01:11]} 16. Qe2 {[%emt 0:00:20]} Bc5 {[%emt 0:01:25]} 17. Red1 {[%emt 0:00:18]} Re8 {[%emt 0:00:29]} (17... e5 $14) 18. h4 $2 {[%emt 0:04:31][%mdl 8192]} (18. Qf3 $16) 18... Qxg3 $19 {[%emt 0:00:31]} 19. Bd4 {[%emt 0:00:58]} Qxh4 {[%emt 0:00:20]} 20. Bxc5 {[%emt 0:00:04]} Nxc5 {[%emt 0:00:09]} (20... bxc5 21. Bc6 Qg5+ 22. Kf1 $11) 21. Rd6 {[%emt 0:01:07]} (21. Qe3 $142) 21... h5 {[%emt 0:01:24]} 22. Rad1 {[%emt 0:00:30]} Ng4 {[%emt 0:00:23]} 23. f3 {[%emt 0:01:49]} Nh6 {[%emt 0:00:40]} 24. R6d4 {[%emt 0:00:39]} Qf6 {[%emt 0:00:19]} 25. Qd2 {[%emt 0:00:07]} Kh7 {[%emt 0:01:07]} 26. Rd8 {[%emt 0:00:30]} Rxd8 {[%emt 0:01:03]} 27. Qxd8 {[%emt 0:00:02]} Qc3 {[%emt 0:00:31]} 28. Qd4 {[%emt 0:00:12]} Qc2 {[%emt 0:00:35][%cal Oc2e2]} 29. Bf1 {[%emt 0:00:51]} Qg6+ {[%emt 0:01:10]} 30. Kf2 {[%emt 0:00:25]} Qg5 {[%emt 0:00:30]} 31. Bd3+ {[%emt 0:00:32]} Nf5 {[%emt 0:00:23]} 32. Bxf5+ {[%emt 0:00:10]} Qxf5 {[%emt 0:00:03][%mdl 4096] Endgame. KQR-KQN} 33. Rd2 {[%emt 0:00:16]} Qg5 {[%emt 0:01:16]} 34. Rd1 {[%emt 0:00:12]} (34. Qe3 $142 Qf6 35. Kg2) 34... e5 {[%emt 0:00:17]} 35. Qe3 {[%emt 0:00:01]} Qh4+ {[%emt 0:00:03]} 36. Ke2 {[%emt 0:00:03]} Qxc4+ {[%emt 0:00:01]} 37. Ke1 {[%emt 0:00:09]} Qh4+ {[%emt 0:00:04]} (37... Qxa2 $2 38. Qxe5 Qe6 39. Qxe6 fxe6 (39... Nxe6 40. Rd7 $15) 40. Rd8 $19) 38. Ke2 {[%emt 0:00:01]} Qh2+ {[%emt 0:00:04]} 39. Ke1 {[%emt 0:00:02]} Qxa2 $2 {[%emt 0:00:28]} (39... Ne6 $19 {and Black stays clearly on top.} 40. Qf2 Qf4) 40. Qxe5 $17 {[%emt 0:00:07]} Qe6 {[%emt 0:00:03]} 41. Qxe6 {[%emt 0:00:01]} fxe6 {[%emt 0:00:07] KR-KN} 42. Ra1 {[%emt 0:00:04] [#]} (42. Kd2 $17 {is a better defense.}) 42... a6 $1 $19 {[%emt 0:00:05]} 43. Rb1 {[%emt 0:00:09]} b5 {[%emt 0:00:01]} 44. Kd2 {[%emt 0:00:06]} (44. Ke2 $142) 44... Kg6 {[%emt 0:00:05]} 45. Ke3 {[%emt 0:00:01]} Kf5 {[%emt 0:00:07]} 46. Rh1 {[%emt 0:00:19]} g6 {[%emt 0:00:02]} 47. f4 {[%emt 0:00:00]} e5 $2 {[%emt 0:00:07]} (47... b4 $19 48. Rb1 a5) 48. fxe5 $11 {[%emt 0:00:01]} Kxe5 {[%emt 0:00:00]} 49. Rg1 {[%emt 0:00:02]} Kf6 {[%emt 0:00:21] ...a5 would now be deadly.} 50. Kd4 $2 {[%emt 0:00:02]} (50. Rc1 $11 {and White stays safe.} Ne6 51. Rc6) 50... Ne6+ $19 {[%emt 0:00:04]} 51. Kd5 $2 {[%emt 0:00:02][%mdl 8192]} (51. Ke4 $17) 51... g5 $2 {[%emt 0:00:02]} (51... Kf5 $19 52. Rf1+ Nf4+ 53. Kd4 g5) 52. Ra1 $2 {[%emt 0:00:02][%mdl 8192]} (52. Rf1+ $11 Nf4+ (52... Ke7 53. Re1 $11) 53. Ke4) 52... Kf5 {[%emt 0:00:02] Strongly threatening ...g4.} 53. Rxa6 {[%emt 0:00:04]} Nc7+ {[%emt 0:00:01]} 54. Kd4 {[%emt 0:00:00] Weighted Error Value: White=0.65/Black=0.39.  Loses game:     	White=4     	---        Missed win:     	---       	Black=3      Mistake:       	White=4     	Black=1      Inaccurate:     	White=4     	---        OK:         	White=8     	Black=22     Best:        	White=2     	Black=4} 0-1

[Event "Polish University-ch Teams 2024"]
[Site "Lublin"]
[Date "2024.02.25"]
[Round "9.9"]
[White "Golenia, Jan"]
[Black "Koziorowicz, Michal"]
[Result "0-1"]
[ECO "E10"]
[WhiteElo "2221"]
[BlackElo "2324"]
[Annotator "TA"]
[PlyCount "58"]
[EventDate "2024.02.22"]
[EventType "team-tourn"]
[EventCountry "POL"]
[SourceTitle "playchess.com"]
[Source "ChessBase"]
[SourceQuality "1"]
[TimeControl "900+5"]

{[%evp 11,57,35,22,16,50,12,36,27,20,18,29,26,29,8,13,-43,22,-62,36,-83,-107,-91,-108,-308,-274,-328,-327,-324,-257,-356,-341,-995,-925,-1897,-1742,-29988,-2385,-29991,-29992,-29995,-29996,-29996,-29997,-29997,-29998,-29998,-29999,-29999]} 1. d4 {[%emt 0:00:02]} e6 {[%emt 0:00:12]} 2. c4 {[%emt 0:00:14]} Nf6 {[%emt 0:00:11]} 3. Nf3 {[%emt 0:00:03]} c5 {[%emt 0:00:02]} 4. d5 {[%emt 0:00:49]} b5 {[%emt 0:00:09]} 5. dxe6 {[%emt 0:01:22]} fxe6 {[%emt 0:00:02]} 6. cxb5 {[%emt 0:01:59]} d5 {[%emt 0:00:01]} 7. e3 {[%emt 0:00:01]} Nbd7 {[%emt 0:00:10]} 8. Nc3 {[%emt 0:00:10]} Bb7 {[%emt 0:00:19]} 9. Be2 {[%emt 0:00:15] Weiß steht etwas besser.} Bd6 {[%emt 0:00:20]} 10. a4 {[%emt 0:01:38][%cal Ba2a4,Ba4a5][%mdl 32]} O-O {[%emt 0:00:34]} 11. a5 {[%emt 0:00:21]} Rc8 {[%emt 0:00:13]} 12. Ra4 {[%emt 0:00:42]} Qe7 {[%emt 0:01:24]} 13. b3 {[%emt 0:01:22]} (13. O-O $11) 13... e5 {[%emt 0:00:18] [#]} (13... c4 $15) 14. b6 {[%emt 0:03:00]} a6 {[%emt 0:00:25] [#]} (14... e4 $15 15. Nd2 d4 (15... axb6 16. Nb5 $15)) 15. e4 {[%emt 0:00:52]} d4 $36 {[%emt 0:00:13][%mdl 2048] Weiss steht unter starkem Druck.} (15... dxe4 16. Nh4 g6 17. Bg5 $16) (15... Nxe4 $2 16. Nxd5 Qf7 17. Rxe4 $18) 16. Bc4+ {[%emt 0:00:01]} Kh8 {[%emt 0:00:02]} 17. Nd5 {[%emt 0:00:01] Ein Fehler, der zur Niederlage führt.} (17. Bg5 $17 dxc3 18. Nh4) 17... Nxd5 $19 {[%emt 0:00:31]} 18. exd5 {[%emt 0:00:55]} e4 {[%emt 0:00:18]} 19. Ng5 {[%emt 0:00:01]} e3 {[%emt 0:00:38]} 20. Qh5 {[%emt 0:00:00][%csl Gg5][%cal Rh5h7]} g6 {[%emt 0:01:09]} ({Schwächer ist} 20... Rxf2 21. Qxh7#) (20... exf2+ 21. Kd1 g6 (21... Nf6 $2 22. Qh4 $19) 22. Qe2 Qxe2+ 23. Kxe2 Rce8+ 24. Ne6 $19) 21. Qg4 {[%emt 0:00:53]} (21. Qxh7+ Qxh7 22. Nxh7 exf2+ (22... Kxh7 $2 23. fxe3 Rce8 24. Ra2 $19) 23. Kf1 Kxh7 24. Ra2) 21... Ne5 {[%emt 0:00:42]} 22. Qe6 {[%emt 0:01:08]} Qxg5 {[%emt 0:00:14]} (22... exf2+ 23. Kf1 Rce8 24. Qxe7 Rxe7 25. Bd2 $17) 23. fxe3 {[%emt 0:00:03]} Nxc4 {[%emt 0:00:37]} (23... Qxg2 $142 24. exd4 Qxh1+ (24... Nf3+ $2 25. Kd1 $19) 25. Kd2 Nxc4+ (25... Qxh2+ $2 26. Kd1 $19) (25... Nf3+ $2 26. Kc2 $19) 26. bxc4 Rf2+ (26... Bxh2 $2 27. Kc2 $19) 27. Qe2 Bf4+ (27... Rxe2+ {wird mattgesetzt.} 28. Kxe2 Qxc1 29. Ra2 Qxc4+ 30. Kf3 Rf8+ 31. Ke3 cxd4+ 32. Kd2 Rf2+ 33. Ke1 Qf1#) (27... Qf3 28. Qxf2 Qxf2+ 29. Kd1 cxd4 30. Bd2 d3 31. Bc3+ Kg8 32. Ra2 Qxa2 33. Bb2 Qxb2 34. c5 Qe2+ 35. Kc1 Qc2#) 28. Kd3 Rxe2 29. Kxe2 Re8+ (29... Qxc1 {führt zum Matt.} 30. Ra2 Qxc4+ 31. Kf2 Qxa2+ 32. Kf3 Qxh2 33. Ke4 Qg3 34. dxc5 Qe3#) 30. Kf2 Qxh2+ (30... Qxc1 31. Ra2 Bxh2 32. Kf3 Qe3+ 33. Kg2 Qg3+ 34. Kh1 Qg1#) 31. Kf1 Re2 32. Bxf4 Qg2#) 24. bxc4 {[%emt 0:00:05]} Qxg2 {[%emt 0:00:18] Schwarz setzt Matt.} 25. Qxd6 {[%emt 0:00:27]} Qxh1+ {[%emt 0:00:07]} 26. Kd2 {[%emt 0:00:01]} Rf2+ {[%emt 0:00:07]} 27. Kd3 {[%emt 0:00:02]} Qd1+ {[%emt 0:00:08]} 28. Ke4 {[%emt 0:00:01]} Qc2+ {[%emt 0:00:05]} 29. Ke5 {[%emt 0:00:02]} Qf5# {[%emt 0:00:01] Gewichteter Fehlerwert: Weiß=1.50/Schwarz=0.43.  Verlustzug:     	Weiß=1     	---        Fehler:       	Weiß=4     	Schwarz=2     Ungenau:       	Weiß=3     	Schwarz=1     OK:         	Weiß=4     	Schwarz=3     Bester:       	---       	Schwarz=5} 0-1

[Event "Polish University-ch Teams 2024"]
[Site "Lublin"]
[Date "2024.02.25"]
[Round "9.10"]
[White "Karpus, Michal"]
[Black "Golenia, Wojciech"]
[Result "1-0"]
[ECO "C96"]
[WhiteElo "2243"]
[BlackElo "2212"]
[Annotator "TA"]
[PlyCount "99"]
[EventDate "2024.02.22"]
[EventType "team-tourn"]
[EventCountry "POL"]
[SourceTitle "playchess.com"]
[Source "ChessBase"]
[SourceQuality "1"]
[TimeControl "900+5"]

{[%evp 27,99,27,26,12,1,10,0,0,0,0,0,0,0,0,11,-6,75,61,93,84,77,86,112,133,171,166,176,141,121,125,118,85,294,192,171,195,171,0,0,0,0,0,125,0,40,38,331,329,328,353,339,304,922,911,1175,1153,1270,1106,29987,29988,29994,29990,29990,29987,29987,29988,29988,29989,29989,29990,29990,29991,29991,29992]} 1. e4 {[%emt 0:00:01]} e5 {[%emt 0:00:03]} 2. Nf3 {[%emt 0:00:08]} Nc6 {[%emt 0:15:12]} 3. Bb5 {[%emt 0:00:01]} a6 {[%emt 0:00:00]} 4. Ba4 {[%emt 0:00:01]} Nf6 {[%emt 0:00:00]} 5. O-O {[%emt 0:00:02]} Be7 {[%emt 0:00:00]} 6. Re1 {[%emt 0:00:03]} b5 {[%emt 0:00:00]} 7. Bb3 {[%emt 0:00:01]} d6 {[%emt 0:00:00]} 8. c3 {[%emt 0:00:02][%cal Bc2c3,Bc3d4,Bd4d5][%mdl 32]} O-O {[%emt 0:00:00]} 9. h3 {[%emt 0:00:02]} Na5 {[%emt 0:00:00]} 10. Bc2 {[%emt 0:00:23]} c5 {[%emt 0:00:00]} 11. d4 {[%emt 0:00:08]} Nd7 {[%emt 0:00:00]} 12. Nbd2 {[%emt 0:00:12]} exd4 {[%emt 0:00:00]} 13. cxd4 {[%emt 0:00:02]} Nc6 {[%emt 0:00:00]} 14. d5 {[%emt 0:00:38]} Nce5 {[%emt 0:00:00]} 15. Nxe5 {[%emt 0:00:34]} Nxe5 {[%emt 0:00:00]} 16. f4 {[%emt 0:00:02]} Ng6 {[%emt 0:00:00]} 17. Nf3 {[%emt 0:00:03] The position is equal.} Bh4 {[%emt 0:00:00]} 18. Nxh4 {[%emt 0:00:05]} Qxh4 {[%emt 0:00:00]} 19. f5 {[%emt 0:00:21]} Ne5 {[%emt 0:00:00]} 20. Rf1 {[%emt 0:00:06]} Re8 {[%emt 0:00:00]} 21. Bf4 $36 {[%emt 0:01:04][%mdl 2048] White is pushing.} g5 {[%emt 0:00:00]} (21... a5 $11 {keeps the balance.}) 22. fxg6 $1 $16 {[%emt 0:01:15]} hxg6 {[%emt 0:00:00]} 23. Qd2 {[%emt 0:00:34]} f6 {[%emt 0:00:00]} 24. b4 {[%emt 0:00:44]} c4 {[%emt 0:00:00]} 25. Qe3 {[%emt 0:01:24]} Rb8 {[%emt 0:00:00]} 26. Bg3 {[%emt 0:01:15]} Qh8 {[%emt 0:00:00]} 27. Rf2 {[%emt 0:00:38]} Rb7 {[%emt 0:00:00]} 28. Raf1 {[%emt 0:00:08]} Rf8 {[%emt 0:00:36]} 29. a4 {[%emt 0:01:37][%cal Ba2a4,Ba4b5][%mdl 32]} Rh7 $2 {[%emt 0:00:43]} (29... Kg7 $16) 30. axb5 {[%emt 0:00:13]} Ng4 {[%emt 0:00:01]} 31. Qb6 {[%emt 0:00:21]} (31. hxg4 $2 Rh1#) 31... Nxf2 {[%emt 0:00:02]} 32. Rxf2 {[%emt 0:00:02]} (32. Bxf2 Bxh3 33. Bg3 (33. gxh3 $2 Rxh3 34. Kg2 Rh2+ 35. Kf3 Qh3+ 36. Ke2 Qc3 $19) 33... Bg4 $19) (32. Qxf2 $18 axb5 33. Bxd6 Bxh3 34. gxh3 (34. Bxf8 Bd7 $14) 34... Rxh3 35. Kg2 (35. Qg2 Qh4 $16)) 32... Bxh3 $1 $11 {[%emt 0:00:18]} 33. gxh3 {[%emt 0:00:42]} Rxh3 {[%emt 0:00:01][%cal Bh7h3,Bh3a3,Ba3a1][%mdl 32]} 34. Bh2 {[%emt 0:00:09] The board is on fire. Active counter play!} (34. Qxd6 $5 Rh1+ $8 35. Kg2 Qh3+ 36. Kf3 axb5 37. Ke3 $16 (37. Qe6+ Qxe6 38. dxe6 Re8 $11)) 34... Qh5 {[%emt 0:00:33]} (34... axb5 $11 35. Qxd6 Qh5) 35. Qxd6 {[%emt 0:00:22]} (35. Bxd6 $2 Rh1+ 36. Kg2 Qh3#) (35. bxa6 $16 {[%cal Ob4b5] aiming for b5!} Ra3 36. Qd4 (36. Bxd6 Ra1+ 37. Rf1 Qg5+ 38. Kf2 Ra2 $19) (36. Qxd6 Qg4+ 37. Rg2 Qf3 $11)) 35... Ra3 {[%emt 0:00:05]} 36. Qf4 {[%emt 0:00:57] Hoping for Qc1.} (36. Rxf6 Qg5+) 36... Qh3 $2 {[%emt 0:00:11][%mdl 8192] [#]} (36... axb5 $14 37. e5 Qh3) 37. b6 $1 $18 {[%emt 0:00:23] b7 is the strong threat.} (37. bxa6 Rxa6 38. d6 Kg7 $16) 37... Ra1+ {[%emt 0:00:07]} 38. Rf1 {[%emt 0:00:01]} Ra2 {[%emt 0:00:01]} 39. Qf2 {[%emt 0:01:04] b7 would now be deadly.} Rf7 {[%emt 0:00:03]} (39... Qc3) 40. e5 {[%emt 0:00:11]} Qg4+ {[%emt 0:00:09] [#]} 41. Kh1 $1 {[%emt 0:00:01] Black must now prevent e6.} Qd7 {[%emt 0:00:03]} 42. Qg2 {[%emt 0:00:58] Intending e6 and mate.} f5 {[%emt 0:00:10]} 43. e6 {[%emt 0:00:03] White mates.} Qb7 {[%emt 0:00:09]} 44. exf7+ {[%emt 0:00:02]} Kxf7 {[%emt 0:00:01]} 45. d6 {[%emt 0:00:17]} Qxg2+ {[%emt 0:00:03]} 46. Kxg2 {[%emt 0:00:02]} Rxc2+ {[%emt 0:00:01]} 47. Rf2 {[%emt 0:00:02]} Rxf2+ {[%emt 0:00:07]} 48. Kxf2 {[%emt 0:00:01]} c3 {[%emt 0:00:01][%cal Bc4c3,Bc3c2][%mdl 32]} 49. b7 {[%emt 0:00:01]} c2 {[%emt 0:00:01]} 50. Bf4 {[%emt 0:00:01] Weighted Error Value: White=0.17 (very precise) /Black=0.50.  Loses game:     	---       	Black=2      Missed win:     	White=1     	---        Mistake:       	White=1     	Black=3      Inaccurate:     	White=1     	Black=3      OK:         	White=11    	Black=11     Best:        	White=2     	---        Strong:       	White=2     	Black=1} (50. b8=B $2 {loses.} c1=Q (50... c1=B 51. Ke2 $16) 51. d7 Ke7 $19 (51... Qd2+ $2 52. Kg1 $19)) 1-0

[Event "Polish University-ch Teams 2024"]
[Site "Lublin"]
[Date "2024.02.25"]
[Round "9.11"]
[White "Musial, Tomasz"]
[Black "Syrkiewicz, Michal"]
[Result "1-0"]
[ECO "B40"]
[WhiteElo "2171"]
[BlackElo "2074"]
[Annotator "ChessBase"]
[PlyCount "73"]
[EventDate "2024.02.22"]
[EventType "team-tourn"]
[EventCountry "POL"]
[SourceTitle "playchess.com"]
[Source "ChessBase"]
[SourceQuality "1"]
[TimeControl "900+5"]

1. e4 {[%emt 0:00:01]} c5 {[%emt 0:00:04]} 2. Nf3 {[%emt 0:00:02]} e6 {[%emt 0:00:01]} 3. g3 {[%emt 0:00:01]} a6 {[%emt 0:00:08]} 4. Bg2 {[%emt 0:00:13]} b5 {[%emt 0:00:02]} 5. O-O {[%emt 0:00:04]} Bb7 {[%emt 0:00:01]} 6. Re1 {[%emt 0:00:03]} d6 {[%emt 0:00:18]} 7. d4 {[%emt 0:01:23]} cxd4 {[%emt 0:00:09]} 8. Nxd4 {[%emt 0:00:02]} Qc7 {[%emt 0:00:10]} 9. a4 {[%emt 0:01:40]} bxa4 {[%emt 0:00:51]} 10. Nc3 {[%emt 0:00:53]} Nf6 {[%emt 0:00:58]} 11. Bg5 {[%emt 0:01:16]} Be7 {[%emt 0:00:59]} 12. Bxf6 {[%emt 0:03:05]} Bxf6 {[%emt 0:00:14]} 13. e5 {[%emt 0:02:31]} Bxe5 {[%emt 0:01:59]} 14. Ndb5 {[%emt 0:02:14]} axb5 {[%emt 0:00:55]} 15. Nxb5 {[%emt 0:00:02]} Qb6 {[%emt 0:00:46]} 16. Bxb7 {[%emt 0:00:27]} Ra5 {[%emt 0:03:07]} 17. Rxe5 {[%emt 0:00:35]} Rxb5 {[%emt 0:00:29]} 18. Rxb5 {[%emt 0:00:04]} Qxb5 {[%emt 0:00:01]} 19. Bf3 {[%emt 0:00:23]} d5 {[%emt 0:01:02]} 20. c4 {[%emt 0:00:07]} Qxc4 {[%emt 0:00:29]} 21. Rc1 {[%emt 0:00:05]} Qa6 {[%emt 0:00:09]} 22. Be2 {[%emt 0:00:02]} Qb7 {[%emt 0:00:37]} 23. Qxa4+ {[%emt 0:00:01]} Ke7 {[%emt 0:00:40]} 24. Qa3+ {[%emt 0:00:16]} Kd7 {[%emt 0:00:38]} 25. Bb5+ {[%emt 0:00:25]} Kd8 {[%emt 0:00:55]} 26. Qa5+ {[%emt 0:00:06]} Ke7 {[%emt 0:00:07]} 27. Rc7+ {[%emt 0:00:02]} Qxc7 {[%emt 0:00:04]} 28. Qxc7+ {[%emt 0:00:01]} Kf6 {[%emt 0:00:01]} 29. Bd3 {[%emt 0:00:15]} g6 {[%emt 0:00:19]} 30. b4 {[%emt 0:00:01]} Re8 {[%emt 0:00:26]} 31. b5 {[%emt 0:00:02]} Kg7 {[%emt 0:00:07]} 32. b6 {[%emt 0:00:02]} h5 {[%emt 0:00:06]} 33. b7 {[%emt 0:00:09]} Rf8 {[%emt 0:00:01]} 34. Bb5 {[%emt 0:00:19]} Kf6 {[%emt 0:00:13]} 35. Bd7 {[%emt 0:00:13]} Na6 {[%emt 0:00:05]} 36. Qd6 {[%emt 0:00:02]} Rb8 {[%emt 0:00:06]} 37. Qxa6 {[%emt 0:00:02]} 1-0

[Event "Polish University-ch Teams 2024"]
[Site "Lublin"]
[Date "2024.02.25"]
[Round "9.12"]
[White "Moscicka, Pola"]
[Black "Furtak, Joanna"]
[Result "1/2-1/2"]
[ECO "E97"]
[WhiteElo "1960"]
[BlackElo "1883"]
[Annotator "NA"]
[PlyCount "73"]
[EventDate "2024.02.22"]
[EventType "team-tourn"]
[EventCountry "POL"]
[SourceTitle "playchess.com"]
[Source "ChessBase"]
[SourceQuality "1"]
[TimeControl "900+5"]

1. d4 {[%emt 0:00:02]} Nf6 {[%emt 0:00:09]} 2. c4 {[%emt 0:00:03]} g6 {[%emt 0:00:01]} 3. Nc3 {[%emt 0:00:02]} Bg7 {[%emt 0:00:01]} 4. e4 {[%emt 0:00:01]} d6 {[%emt 0:00:01]} 5. Nf3 {[%emt 0:00:02]} O-O {[%emt 0:00:02]} 6. Be2 {[%emt 0:00:02]} e5 {[%emt 0:00:01]} 7. O-O {[%emt 0:00:17]} Nc6 {[%emt 0:00:01]} 8. d5 {[%emt 0:00:02]} Ne7 {[%emt 0:00:02]} 9. b4 {[%emt 0:15:19]} a5 {[%emt 0:00:01]} 10. Ba3 {[%emt 0:00:00]} axb4 {[%emt 0:00:36]} 11. Bxb4 {[%emt 0:00:00]} Re8 {[%emt 0:00:32]} 12. a4 {[%emt 0:00:00]} Bf8 {[%emt 0:00:37]} 13. Qc2 {[%emt 0:00:00]} c5 {[%emt 0:04:35]} 14. Ba3 {[%emt 0:00:00]} Nh5 {[%emt 0:00:03]} 15. g3 {[%emt 0:00:00]} Ng7 {[%emt 0:03:40]} 16. Bc1 {[%emt 0:00:00]} f6 {[%emt 0:00:44]} 17. Be3 {[%emt 0:00:00]} g5 {[%emt 0:00:29]} 18. Nd2 {[%emt 0:00:00]} Bh3 {[%emt 0:00:50]} 19. Rfb1 {[%emt 0:00:00]} b6 {[%emt 0:01:05]} 20. Qd1 {[%emt 0:00:00]} Ng6 {[%emt 0:01:09]} 21. Bg4 {[%emt 0:00:00]} Bxg4 {[%emt 0:00:02]} 22. Qxg4 {[%emt 0:00:00]} h5 {[%emt 0:00:01]} 23. Qf3 {[%emt 0:00:00]} Ra7 {[%emt 0:00:41]} 24. Rb2 {[%emt 0:00:00]} Be7 {[%emt 0:00:48]} 25. Rab1 {[%emt 0:00:00]} Ra6 {[%emt 0:00:27]} 26. Qd1 {[%emt 0:00:00]} h4 {[%emt 0:00:25]} 27. Rb5 {[%emt 0:00:00]} Qc7 {[%emt 0:00:06]} 28. Qb3 {[%emt 0:00:00]} Bd8 {[%emt 0:00:05]} 29. Qd1 {[%emt 0:00:04]} Qd7 {[%emt 0:00:05]} 30. Qe2 {[%emt 0:00:29]} hxg3 {[%emt 0:00:08]} 31. hxg3 {[%emt 0:00:06]} Qh3 {[%emt 0:00:02]} 32. Qf1 {[%emt 0:00:25]} Qg4 {[%emt 0:00:04]} 33. Qe2 {[%emt 0:00:11]} Qh3 {[%emt 0:00:01]} 34. Qf1 {[%emt 0:00:03]} Qg4 {[%emt 0:00:06]} 35. Qd1 {[%emt 0:00:08]} Qh3 {[%emt 0:00:02]} 36. Qf1 {[%emt 0:00:12]} Qg4 {[%emt 0:00:01]} 37. Qd1 {[%emt 0:00:21]} 1/2-1/2

[Event "Polish University-ch Teams 2024"]
[Site "Lublin"]
[Date "2024.02.25"]
[Round "9.13"]
[White "Lukasiewicz, Krzysztof"]
[Black "Kosakowski, Jakub"]
[Result "0-1"]
[ECO "D02"]
[WhiteElo "2290"]
[BlackElo "2482"]
[Annotator "RC"]
[PlyCount "112"]
[EventDate "2024.02.22"]
[EventType "team-tourn"]
[EventCountry "POL"]
[SourceTitle "playchess.com"]
[Source "ChessBase"]
[SourceQuality "1"]
[TimeControl "900+5"]

1. d4 {[%emt 0:00:01]} Nf6 {[%emt 0:00:21]} 2. Bf4 {[%emt 0:00:05]} d5 {[%emt 0:00:05]} 3. e3 {[%emt 0:00:02]} c5 {[%emt 0:00:04]} 4. Nf3 {[%emt 0:00:32]} Nc6 {[%emt 0:00:04]} 5. Nbd2 {[%emt 0:00:02]} cxd4 {[%emt 0:00:03]} 6. exd4 {[%emt 0:00:02]} Bf5 {[%emt 0:00:17]} 7. c3 {[%emt 0:01:33]} e6 {[%emt 0:00:29]} 8. Bb5 {[%emt 0:00:35]} Qb6 {[%emt 0:00:33]} 9. Qb3 {[%emt 0:01:15]} Be7 {[%emt 0:00:29]} 10. O-O {[%emt 0:01:31]} O-O {[%emt 0:00:06]} 11. Rfe1 {[%emt 0:00:23]} Rfc8 {[%emt 0:00:50]} 12. Ne5 {[%emt 0:01:57]} Nxd4 {[%emt 0:01:59]} 13. cxd4 {[%emt 0:00:42]} Bc2 {[%emt 0:00:03]} 14. Qe3 {[%emt 0:02:40]} Qxb5 {[%emt 0:00:15]} 15. Nxf7 {[%emt 0:00:02]} Bf5 {[%emt 0:00:24]} 16. Ng5 {[%emt 0:00:58]} Rc6 {[%emt 0:02:35]} 17. Nb3 {[%emt 0:00:01]} Rac8 {[%emt 0:00:18]} 18. h3 {[%emt 0:00:02]} Ne4 {[%emt 0:00:23]} 19. Nxe4 {[%emt 0:00:20]} Bxe4 {[%emt 0:00:03]} 20. Rac1 {[%emt 0:00:15]} b6 {[%emt 0:00:11]} 21. Rxc6 {[%emt 0:00:20]} Rxc6 {[%emt 0:00:02]} 22. Rc1 {[%emt 0:01:10]} a5 {[%emt 0:00:14]} 23. Rxc6 {[%emt 0:00:14]} Qxc6 {[%emt 0:00:02]} 24. Nd2 {[%emt 0:00:08]} Bf5 {[%emt 0:00:36]} 25. Kh2 {[%emt 0:00:21]} h6 {[%emt 0:00:18]} 26. Qg3 {[%emt 0:00:36]} Kh7 {[%emt 0:00:22]} 27. Be5 {[%emt 0:00:07]} Bf8 {[%emt 0:00:06]} 28. Nf1 {[%emt 0:00:40]} b5 {[%emt 0:06:13]} 29. Ne3 {[%emt 0:00:06]} Bg6 {[%emt 0:00:00]} 30. Qh4 {[%emt 0:00:15]} Qe8 {[%emt 0:00:00]} 31. f3 {[%emt 0:00:13]} b4 {[%emt 0:00:15]} 32. Ng4 {[%emt 0:00:13]} Be7 {[%emt 0:00:00]} 33. Qe1 {[%emt 0:00:01]} Qc8 {[%emt 0:00:00]} 34. Qe3 {[%emt 0:00:05]} Bf8 {[%emt 0:00:00]} 35. Qf4 {[%emt 0:00:08]} Bf5 {[%emt 0:00:00]} 36. Ne3 {[%emt 0:00:01]} Bg6 {[%emt 0:00:00]} 37. Ng4 {[%emt 0:00:01]} Bf5 {[%emt 0:00:00]} 38. Ne3 {[%emt 0:00:02]} Bb1 {[%emt 0:00:20]} 39. Ng4 {[%emt 0:00:11]} Qe8 {[%emt 0:00:02]} 40. a3 {[%emt 0:00:24]} bxa3 {[%emt 0:00:09]} 41. bxa3 {[%emt 0:00:01]} Bf5 {[%emt 0:00:08]} 42. Ne3 {[%emt 0:00:05]} Bg6 {[%emt 0:00:02]} 43. Ng4 {[%emt 0:00:02]} Bf5 {[%emt 0:00:09]} 44. Ne3 {[%emt 0:00:01]} g5 {[%emt 0:00:06]} 45. Qg3 {[%emt 0:00:09]} Bxa3 {[%emt 0:00:02]} 46. f4 {[%emt 0:00:03]} Be7 {[%emt 0:00:08]} 47. fxg5 {[%emt 0:00:04]} hxg5 {[%emt 0:00:03]} 48. Nxf5 {[%emt 0:00:18]} exf5 {[%emt 0:00:01]} 49. Qf3 {[%emt 0:00:01]} Qf7 {[%emt 0:00:03]} 50. Qb3 {[%emt 0:00:02]} Bf8 {[%emt 0:00:15]} 51. Qb5 {[%emt 0:00:06]} Bg7 {[%emt 0:00:04]} 52. Bxg7 {[%emt 0:00:08]} Kxg7 {[%emt 0:00:02]} 53. Qxa5 {[%emt 0:00:02]} f4 {[%emt 0:00:00]} 54. Qd8 {[%emt 0:00:04]} Kg6 {[%emt 0:00:11]} 55. h4 {[%emt 0:00:11]} gxh4 {[%emt 0:00:05]} 56. Qxh4 {[%emt 0:00:02]} Kf5 {[%emt 0:00:03]} 0-1